bitfinex/quotes_SOLUSD_20251226
["timestamp","ask_amount","ask_price","bid_price","bid_amount"]
[1766738347311,11.05903769,122.48,122.45,0.72]
[1766738347511,5.47638528,122.47,122.45,0.72]
[1766738347721,11.05903769,122.48,122.45,0.72]
[1766738348021,5.47637805,122.47,122.45,0.72]
[1766738348220,11.05903769,122.48,122.45,0.72]
[1766738348428,5.47630846,122.47,122.45,0.72]
[1766738348628,11.05903769,122.48,122.45,0.72]
[1766738348829,5.47630422,122.47,122.45,0.72]
[1766738349030,11.05903769,122.48,122.45,0.72]
[1766738349331,5.47630422,122.47,122.45,0.72]
[1766738349638,11.05903769,122.48,122.45,0.72]
[1766738349836,5.4763434,122.47,122.45,0.72]
[1766738350018,11.05903769,122.48,122.45,0.72]
[1766738350343,5.47625019,122.47,122.45,0.72]
[1766738350546,11.05903769,122.48,122.45,0.72]
[1766738350720,7.69035133,122.47,122.45,0.72]
[1766738350917,2.21415276,122.47,122.45,0.72]
[1766738351123,8.84488493,122.48,122.45,0.72]
[1766738351320,7.69053772,122.47,122.45,0.72]
[1766738351526,8.37028661,122.46,122.44,14.9]
[1766738351733,2.89415276,122.46,122.44,14.9]
[1766738351930,2.89415276,122.46,122.44,15.62]
[1766738353245,0.68,122.46,122.44,15.62]
[1766738353444,2.21415276,122.46,122.44,15.62]
[1766738353740,2.21415276,122.45,122.42,0.72]
[1766738353939,2.21415276,122.43,122.41,0.66]
[1766738354331,2.89415276,122.44,122.41,0.66]
[1766738354530,2.93415276,122.42,122.38,0.66]
[1766738354749,2.21415276,122.42,122.4,0.66]
[1766738355423,8.88866431,122.42,122.39,0.66]
[1766738355634,2.21415276,122.41,122.39,0.66]
[1766738355837,8.88866431,122.42,122.39,0.66]
[1766738356044,2.21415276,122.41,122.39,0.66]
[1766738356435,11.10281707,122.42,122.39,0.66]
[1766738357550,2.21415276,122.41,122.39,0.66]
[1766738358346,11.10281707,122.42,122.39,0.66]
[1766738360238,0.72,122.42,122.39,0.66]
[1766738360443,2.93415276,122.42,122.39,0.66]
[1766738360750,2.21415276,122.42,122.39,0.66]
[1766738361954,2.93415276,122.42,122.39,0.66]
[1766738364040,4.18344789,122.42,122.39,0.66]
[1766738367856,4.18344789,122.41,122.39,0.66]
[1766738368057,3.46344789,122.4,122.35,11.63660899]
[1766738368236,4.18344789,122.39,122.36,0.66]
[1766738374573,0.72,122.39,122.36,0.66]
[1766738374761,4.18344789,122.39,122.36,0.66]
[1766738376780,4.18344789,122.37,122.34,8.83375539]
[1766738376972,4.18344789,122.37,122.35,0.66]
[1766738377685,0.72,122.37,122.35,0.66]
[1766738377852,4.18344789,122.38,122.35,0.66]
[1766738378054,0.72,122.38,122.35,0.66]
[1766738378251,4.18344789,122.38,122.35,0.66]
[1766738379276,0.72,122.38,122.35,0.66]
[1766738379480,4.18344789,122.38,122.35,0.66]
[1766738381561,0.72,122.38,122.35,0.66]
[1766738381860,4.18344789,122.38,122.35,0.66]
[1766738382683,0.72,122.38,122.35,0.66]
[1766738382883,4.18344789,122.38,122.35,0.66]
[1766738384286,0.72,122.38,122.35,0.66]
[1766738384503,0.72,122.38,122.35,4.16344789]
[1766738384791,4.18344789,122.38,122.35,0.7]
[1766738384962,3.46344789,122.37,122.34,0.7]
[1766738385163,18.38344789,122.37,122.34,0.7]
[1766738385473,15.61,122.37,122.34,0.7]
[1766738386964,0.69,122.37,122.34,0.7]
[1766738387163,15.61,122.37,122.34,0.7]
[1766738387889,0.69,122.37,122.34,0.7]
[1766738388387,15.61,122.37,122.34,0.7]
[1766738388588,19.07344789,122.37,122.34,0.7]
[1766738391892,15.61,122.37,122.34,0.7]
[1766738394386,26.55550738,122.37,122.34,0.7]
[1766738394591,27.24550738,122.37,122.34,0.7]
[1766738396692,0.69,122.36,122.34,0.7]
[1766738400996,4.15344789,122.35,122.33,6.7256546]
[1766738401197,8.17287483,122.36,122.31,0.7]
[1766738401198,4.15344789,122.34,122.31,0.7]
[1766738401494,0.69,122.35,122.32,0.7]
[1766738401711,4.15344789,122.35,122.32,0.7]
[1766738402590,8.8633006,122.35,122.32,0.7]
[1766738403606,3.46344789,122.33,122.3,0.7]
[1766738403780,19.07344789,122.34,122.3,0.7]
[1766738404615,19.07344789,122.34,122.31,0.7]
[1766738405404,0.69,122.33,122.31,0.7]
[1766738407406,10.43767296,122.36,122.31,11.63923542]
[1766738407709,10.43767296,122.36,122.33,0.7]
[1766738407710,26.04767296,122.36,122.33,0.7]
[1766738408280,34.22031433,122.36,122.33,0.7]
[1766738409616,37.68376222,122.36,122.33,0.7]
[1766738410214,22.76376222,122.36,122.33,0.7]
[1766738410398,3.46344789,122.35,122.33,0.7]
[1766738412911,3.46344789,122.34,122.33,0.7]
[1766738413211,3.46344789,122.34,122.31,8.17570257]
[1766738413417,3.46344789,122.34,122.32,0.7]
[1766738413721,3.46344789,122.33,122.3,0.7]
[1766738414209,3.46344789,122.32,122.3,0.7]
[1766738414411,3.46344789,122.33,122.3,0.7]
[1766738414602,3.46344789,122.32,122.3,0.7]
[1766738415706,8.86397935,122.34,122.3,0.7]
[1766738415912,3.46344789,122.33,122.3,0.7]
[1766738417714,12.32742724,122.34,122.31,0.71]
[1766738418100,3.46344789,122.33,122.31,0.71]
[1766738418488,4.16344789,122.34,122.31,0.71]
[1766738419916,0.7,122.33,122.31,0.71]
[1766738421013,18.38344789,122.34,122.32,0.71]
[1766738421612,19.08344789,122.34,122.32,0.71]
[1766738425922,17.83962,122.34,122.32,0.71]
[1766738428311,123.68893866,122.38,122.32,8.17500499]
[1766738428625,0.7,122.36,122.33,0.71]
[1766738428827,15.62,122.36,122.33,0.71]
[1766738429011,14.92,122.36,122.33,0.71]
[1766738429829,14.92,122.36,122.34,0.71]
[1766738430203,0.7,122.39,122.35,0.71]
[1766738430402,2.21962,122.38,122.35,0.71]
[1766738430729,2.21962,122.37,122.35,0.71]
[1766738430904,2.91962,122.37,122.34,0.71]
[1766738431624,2.21962,122.37,122.34,8.17350977]
[1766738431827,2.21962,122.37,122.35,0.71]
[1766738432908,0.7,122.38,122.35,0.71]
[1766738433104,2.21962,122.37,122.35,0.71]
[1766738434332,0.7,122.38,122.35,0.71]
[1766738434511,2.21962,122.37,122.35,0.71]
[1766738435032,0.7,122.38,122.35,0.71]
[1766738435208,2.21962,122.37,122.35,0.71]
[1766738436835,11.09089342,122.38,122.35,0.71]
[1766738437935,10.39089342,122.38,122.35,0.71]
[1766738438114,2.91962,122.37,122.34,0.71]
[1766738438836,8.17127342,122.38,122.33,8.17457151]
[1766738438837,2.91962,122.36,122.33,0.71]
[1766738440113,2.21962,122.36,122.33,0.71]
[1766738442151,11.09194799,122.37,122.33,0.71]
[1766738443842,2.93962,122.36,122.33,0.71]
[1766738446142,11.08194799,122.37,122.33,0.71]
[1766738451743,0.69,122.36,122.33,0.71]
[1766738453232,0.69,122.36,122.34,0.7]
[1766738453750,0.69,122.36,122.32,28.61394208]
[1766738453928,2.90962,122.35,122.32,0.7]
[1766738454831,0.69,122.35,122.32,8.87526677]
[1766738455036,0.69,122.35,122.33,0.7]
[1766738455037,2.90962,122.35,122.33,0.7]
[1766738455645,0.69,122.35,122.33,0.7]
[1766738458535,2.90962,122.35,122.33,0.7]
[1766738458855,2.21962,122.34,122.3,23.09633605]
[1766738459053,8.17336926,122.35,122.3,15.62]
[1766738459054,2.90962,122.33,122.3,15.62]
[1766738459264,2.90962,122.33,122.3,0.7]
[1766738459553,2.90962,122.33,122.31,0.7]
[1766738461538,11.08423534,122.33,122.29,0.7]
[1766738462344,2.90962,122.33,122.29,8.87712688]
[1766738462666,0.69,122.31,122.29,0.7]
[1766738462833,2.90962,122.32,122.29,0.7]
[1766738463748,0.69,122.31,122.29,0.7]
[1766738464255,2.21962,122.32,122.29,0.7]
[1766738464433,0.69,122.32,122.29,0.7]
[1766738464755,2.90962,122.32,122.29,0.7]
[1766738464956,0.69,122.31,122.29,0.7]
[1766738465436,0.69,122.3,122.28,0.2]
[1766738465636,0.69,122.3,122.28,0.9]
[1766738466143,2.90962,122.31,122.28,0.9]
[1766738468051,0.69,122.31,122.28,9.07793428]
[1766738468238,0.69,122.33,122.3,0.7]
[1766738470253,0.69,122.33,122.3,8.17648303]
[1766738470452,17.82962,122.34,122.31,0.7]
[1766738472345,0.69,122.33,122.31,0.7]
[1766738472961,17.82962,122.34,122.31,0.7]
[1766738473261,15.61,122.34,122.31,0.7]
[1766738473436,17.82962,122.34,122.31,0.7]
[1766738476159,14.92,122.34,122.31,0.7]
[1766738476362,26.02250383,122.36,122.31,0.7]
[1766738476854,0.71,122.35,122.31,0.7]
[1766738477240,0.71,122.35,122.31,8.87589866]
[1766738477464,2.92962,122.35,122.32,0.65]
[1766738478040,0.71,122.35,122.32,0.65]
[1766738478361,2.92962,122.35,122.32,0.65]
[1766738481557,2.21962,122.35,122.33,0.65]
[1766738481765,2.92962,122.36,122.33,0.65]
[1766738481968,2.21962,122.35,122.33,0.65]
[1766738482563,0.71,122.36,122.33,8.82455865]
[1766738482758,2.21962,122.35,122.33,8.82455865]
[1766738484563,2.92962,122.36,122.33,8.82455865]
[1766738484745,2.21962,122.35,122.33,8.82455865]
[1766738485947,3.46724083,122.35,122.33,8.82455865]
[1766738488147,3.46724083,122.35,122.33,0.65]
[1766738488364,4.17724083,122.35,122.32,0.65]
[1766738490269,4.17724083,122.33,122.31,0.65]
[1766738490848,4.17724083,122.32,122.3,0.65]
[1766738491049,3.46724083,122.31,122.29,0.65]
[1766738491953,4.17724083,122.32,122.29,0.65]
[1766738492565,3.46724083,122.31,122.29,0.65]
[1766738492769,4.17724083,122.32,122.29,0.65]
[1766738497076,0.71,122.31,122.29,0.65]
[1766738498880,4.17724083,122.31,122.29,0.65]
[1766738499178,12.35278401,122.32,122.29,0.65]
[1766738500662,8.88554318,122.32,122.29,0.65]
[1766738500975,19.3218846,122.34,122.3,0.65]
[1766738501177,22.78912543,122.34,122.3,0.65]
[1766738501886,3.46724083,122.33,122.3,0.65]
[1766738502082,4.17724083,122.33,122.3,0.65]
[1766738505477,3.46724083,122.32,122.3,0.65]
[1766738505778,0.71,122.33,122.3,0.65]
[1766738505969,3.46724083,122.32,122.3,8.82659568]
[1766738506685,0.71,122.33,122.31,0.7]
[1766738506977,4.17724083,122.33,122.31,0.7]
[1766738507680,23.09353519,122.35,122.31,0.7]
[1766738507882,3.46724083,122.33,122.31,0.7]
[1766738508665,3.46724083,122.32,122.31,0.7]
[1766738509180,3.46724083,122.32,122.3,8.17621225]
[1766738509360,3.46724083,122.31,122.3,8.17621225]
[1766738509560,3.46724083,122.31,122.29,8.17708148]
[1766738509784,3.46724083,122.3,122.28,71.07766032]
[1766738509972,3.46724083,122.3,122.28,0.2]
[1766738511387,3.46724083,122.3,122.29,0.7]
[1766738511583,3.46724083,122.3,122.28,0.2]
[1766738512793,3.46724083,122.3,122.28,8.3779056]
[1766738513590,3.46724083,122.3,122.28,8.7779056]
[1766738515275,0.67,122.31,122.29,0.4]
[1766738515276,3.46724083,122.31,122.29,0.4]
[1766738516797,0.67,122.32,122.29,0.4]
[1766738516976,3.46724083,122.31,122.29,0.4]
[1766738517175,4.13724083,122.32,122.29,0.4]
[1766738518982,0.67,122.32,122.29,0.4]
[1766738519189,4.13724083,122.32,122.29,0.4]
[1766738520194,4.13724083,122.31,122.28,16.55325172]
[1766738520370,4.13724083,122.31,122.28,16.95325172]
[1766738521170,0.67,122.31,122.28,16.95325172]
[1766738528004,0.67,122.31,122.29,8.57724884]
[1766738532402,0.67,122.31,122.29,0.4]
[1766738533579,8.17403356,122.34,122.29,8.57725282]
[1766738533785,6.15536804,122.33,122.29,8.57725282]
[1766738534004,4.13724083,122.32,122.29,17.15450564]
[1766738534203,0.67,122.31,122.29,8.57725282]
[1766738535393,0.67,122.33,122.29,8.57725282]
[1766738535588,0.67,122.32,122.29,8.57725282]
[1766738537509,0.67,122.32,122.29,7.45725282]
[1766738537713,0.67,122.32,122.29,6.73725282]
[1766738538093,0.67,122.32,122.29,7.41725282]
[1766738538294,0.67,122.32,122.3,0.68]
[1766738538895,4.13724083,122.34,122.31,0.68]
[1766738539096,5.49035337,122.33,122.31,0.68]
[1766738540091,6.16035337,122.33,122.31,0.68]
[1766738540293,4.13724083,122.33,122.3,8.85610387]
[1766738540501,4.13724083,122.33,122.3,0.68]
[1766738542899,0.67,122.33,122.3,0.68]
[1766738547824,4.13724083,122.34,122.31,0.68]
[1766738548023,5.48959191,122.33,122.31,0.68]
[1766738548211,6.15959191,122.33,122.31,0.68]
[1766738548396,0.67,122.33,122.31,0.68]
[1766738548600,0.67,122.34,122.31,0.68]
[1766738548801,0.67,122.36,122.33,0.68]
[1766738549098,5.49039609,122.35,122.33,0.68]
[1766738549297,0.67,122.36,122.33,0.68]
[1766738549699,11.06210974,122.36,122.33,0.68]
[1766738550306,0.67,122.35,122.33,0.68]
[1766738551801,8.84280495,122.36,122.33,0.68]
[1766738552099,10.39210974,122.36,122.33,0.68]
[1766738552299,2.88930479,122.35,122.31,32.70876908]
[1766738552521,2.88930479,122.35,122.32,0.68]
[1766738553106,0.67,122.34,122.31,0.68]
[1766738559728,0.67,122.35,122.32,0.68]
[1766738561202,0.67,122.35,122.32,8.85518103]
[1766738562131,0.67,122.35,122.32,11.07448582]
[1766738562632,0.65,122.36,122.33,0.72]
[1766738564434,0.7,122.38,122.34,0.7]
[1766738564614,8.39036446,122.37,122.34,0.7]
[1766738564938,2.91930479,122.37,122.34,0.7]
[1766738565739,0.7,122.36,122.33,8.87394298]
[1766738565942,2.91930479,122.36,122.33,8.87394298]
[1766738566118,0.7,122.36,122.33,8.87394298]
[1766738569639,0.7,122.36,122.33,11.09324777]
[1766738571743,0.7,122.36,122.33,10.39324777]
[1766738571931,0.7,122.36,122.33,11.09324777]
[1766738572130,0.7,122.36,122.34,0.7]
[1766738572317,0.7,122.36,122.33,8.87394298]
[1766738573746,0.7,122.36,122.33,8.17394298]
[1766738573926,0.7,122.36,122.34,0.7]
[1766738574239,0.7,122.36,122.33,11.09324777]
[1766738577942,0.7,122.38,122.34,0.7]
[1766738578128,0.7,122.38,122.35,0.7]
[1766738578329,0.7,122.38,122.35,2.91930479]
[1766738579346,0.7,122.38,122.35,11.09235232]
[1766738581455,0.7,122.38,122.36,0.7]
[1766738581754,0.7,122.39,122.36,0.7]
[1766738582048,11.13767296,122.4,122.37,2.91930479]
[1766738582244,13.35697775,122.4,122.37,0.7]
[1766738582828,2.21930479,122.39,122.35,50.53515685]
[1766738583150,2.91930479,122.39,122.36,0.7]
[1766738584349,0.7,122.39,122.36,0.7]
[1766738584726,2.91930479,122.39,122.36,0.7]
[1766738585249,0.7,122.39,122.36,0.7]
[1766738589834,0.7,122.39,122.36,2.91930479]
[1766738590234,2.91930479,122.38,122.35,0.7]
[1766738590658,0.7,122.36,122.34,0.7]
[1766738591038,2.91930479,122.37,122.34,0.7]
[1766738604679,0.72,122.36,122.33,11.08371316]
[1766738604978,0.72,122.36,122.34,0.69]
[1766738605159,2.93930479,122.37,122.34,0.69]
[1766738606376,0.72,122.37,122.34,0.69]
[1766738610672,0.72,122.38,122.35,0.69]
[1766738611078,4.18565061,122.39,122.36,0.69]
[1766738611876,0.72,122.38,122.36,0.69]
[1766738613980,4.18565061,122.39,122.36,0.69]
[1766738620374,11.63633679,122.39,122.36,0.69]
[1766738620675,0.72,122.38,122.36,0.69]
[1766738623878,0.72,122.38,122.36,8.86258295]
[1766738625480,3.46565061,122.39,122.36,8.86258295]
[1766738625661,4.14565061,122.39,122.36,8.86258295]
[1766738627480,0.68,122.39,122.36,8.17258295]
[1766738627687,0.68,122.39,122.37,0.71]
[1766738628186,29.50332357,122.4,122.37,0.71]
[1766738628974,0.68,122.39,122.37,0.71]
[1766738631086,29.50332357,122.4,122.37,0.71]
[1766738631691,37.67329269,122.4,122.37,0.71]
[1766738633884,19.28764208,122.4,122.37,0.71]
[1766738634091,0.68,122.39,122.36,32.69741434]
[1766738634570,0.68,122.39,122.37,0.71]
[1766738636494,22.75329269,122.4,122.37,0.71]
[1766738640998,4.14565061,122.4,122.37,0.71]
[1766738641306,0.68,122.4,122.37,0.71]
[1766738641485,0.68,122.4,122.38,0.71]
[1766738642406,4.14565061,122.4,122.37,33.40474734]
[1766738642702,4.14565061,122.4,122.37,8.17192068]
[1766738642904,4.14565061,122.4,122.38,0.71]
[1766738645583,0.68,122.4,122.38,0.71]
[1766738663596,0.68,122.4,122.38,0.66]
[1766738675208,130.83445574,122.42,122.38,8.83110884]
[1766738675409,6.14675475,122.41,122.38,8.83110884]
[1766738675608,0.66,122.41,122.38,8.83110884]
[1766738675810,0.66,122.43,122.4,0.71]
[1766738676023,5.48736623,122.42,122.4,2.92678278]
[1766738676531,0.66,122.43,122.4,2.92678278]
[1766738677226,0.66,122.43,122.4,0.71]
[1766738677410,0.66,122.42,122.39,27.44560097]
[1766738677834,0.66,122.42,122.39,35.61557857]
[1766738678019,0.66,122.42,122.4,0.71]
[1766738680714,2.87678278,122.43,122.4,0.71]
[1766738680934,0.66,122.43,122.4,8.87978611]
[1766738682510,2.87678278,122.43,122.4,8.87978611]
[1766738685345,0.66,122.43,122.4,8.86978611]
[1766738685640,2.87678278,122.43,122.4,8.86978611]
[1766738688638,10.53767296,122.44,122.39,24.51881819]
[1766738688639,2.21678278,122.42,122.39,24.51881819]
[1766738688818,2.90678278,122.41,122.38,8.86097443]
[1766738689027,2.90678278,122.41,122.39,0.69]
[1766738689435,0.69,122.41,122.39,0.69]
[1766738689632,2.90678278,122.41,122.39,0.69]
[1766738693749,0.69,122.41,122.39,0.69]
[1766738697554,2.90678278,122.42,122.39,0.69]
[1766738701052,0.69,122.42,122.39,8.1704643]
[1766738701258,0.69,122.43,122.4,0.69]
[1766738701643,2.90678278,122.43,122.4,0.69]
[1766738702142,0.69,122.42,122.4,0.69]
[1766738705955,0.69,122.42,122.39,29.78240248]
[1766738706154,0.69,122.42,122.39,27.5656197]
[1766738707940,0.69,122.42,122.39,8.8604643]
[1766738708334,0.69,122.42,122.39,8.1704643]
[1766738708533,0.69,122.42,122.4,0.69]
[1766738715446,2.90678278,122.42,122.4,0.69]
[1766738716059,0.69,122.42,122.4,0.69]
[1766738716243,2.90678278,122.42,122.4,0.69]
[1766738724777,0.69,122.42,122.4,0.69]
[1766738742275,0.69,122.42,122.39,0.67]
[1766738742490,4.15325487,122.42,122.39,0.67]
[1766738743087,4.16325487,122.41,122.39,0.67]
[1766738743391,0.7,122.39,122.37,0.67]
[1766738743591,3.46325487,122.38,122.36,0.67]
[1766738744704,3.46325487,122.38,122.36,8.84032468]
[1766738745390,4.16325487,122.39,122.36,8.84032468]
[1766738745600,4.16325487,122.39,122.37,0.7]
[1766738746572,12.33357955,122.4,122.37,0.7]
[1766738747573,3.46325487,122.39,122.37,0.7]
[1766738748696,4.16325487,122.39,122.37,0.7]
[1766738749777,0.7,122.38,122.36,8.17032468]
[1766738749977,0.7,122.38,122.36,8.87032468]
[1766738750470,4.16325487,122.39,122.36,8.87032468]
[1766738756011,0.7,122.39,122.36,8.87032468]
[1766738756509,4.16325487,122.38,122.34,0.7]
[1766738756890,4.16325487,122.38,122.35,0.7]
[1766738757409,4.16325487,122.37,122.34,0.7]
[1766738757589,0.7,122.37,122.34,0.7]
[1766738761099,0.7,122.37,122.34,3.46325487]
[1766738761288,0.7,122.37,122.35,0.7]
[1766738766022,11.63486536,122.38,122.35,0.7]
[1766738766329,8.17433878,122.4,122.37,0.7]
[1766738766330,8.87021344,122.4,122.37,0.7]
[1766738766502,12.33346831,122.4,122.37,0.7]
[1766738767403,0.7,122.39,122.37,0.7]
[1766738767908,0.7,122.39,122.36,0.7]
[1766738768629,0.7,122.39,122.37,0.7]
[1766738773525,0.7,122.39,122.36,0.7]
[1766738775730,0.7,122.39,122.36,25.22483139]
[1766738776230,0.7,122.39,122.37,0.67]
[1766738779225,0.67,122.38,122.35,25.19483139]
[1766738780330,0.67,122.37,122.35,25.19483139]
[1766738780517,0.67,122.37,122.35,0.67]
[1766738784139,8.8416218,122.38,122.35,0.67]
[1766738784927,0.67,122.38,122.35,0.67]
[1766738785627,0.67,122.38,122.35,21.09580686]
[1766738790538,2.88786987,122.38,122.35,21.09580686]
[1766738790838,0.67,122.4,122.36,2.21786987]
[1766738791053,0.67,122.4,122.37,0.67]
[1766738791549,0.67,122.4,122.37,25.19483139]
[1766738792226,5.45881983,122.39,122.37,25.19483139]
[1766738792729,0.67,122.4,122.37,25.19483139]
[1766738799344,2.88786987,122.4,122.37,25.19483139]
[1766738799749,11.05795441,122.4,122.37,0.67]
[1766738803652,11.05795441,122.4,122.37,25.19483139]
[1766738804363,8.84008454,122.4,122.37,25.19483139]
[1766738804548,11.05795441,122.4,122.37,25.19483139]
[1766738805434,11.05795441,122.4,122.37,0.67]
[1766738805754,2.21786987,122.39,122.37,0.67]
[1766738810228,11.05795441,122.4,122.37,0.67]
[1766738810533,5.46214387,122.39,122.37,0.67]
[1766738812434,0.71,122.41,122.38,2.61786987]
[1766738812857,0.71,122.41,122.38,27.13869213]
[1766738816053,8.87804486,122.43,122.39,0.4]
[1766738816355,8.87804486,122.43,122.4,0.4]
[1766738817256,0.1,122.44,122.41,2.61786987]
[1766738817438,0.81,122.44,122.41,2.61786987]
[1766738817629,0.81,122.44,122.41,10.78875418]
[1766738819151,0.81,122.44,122.41,18.9579539]
[1766738820259,0.1,122.44,122.42,10.78625132]
[1766738820559,0.1,122.44,122.42,35.29905926]
[1766738820763,2.92786987,122.43,122.42,23.79280794]
[1766738821062,0.71,122.42,122.4,15.7]
[1766738821630,2.92786987,122.43,122.4,15.7]
[1766738822265,2.21786987,122.43,122.4,15.02]
[1766738822436,0.71,122.41,122.38,8.17099493]
[1766738822759,2.92786987,122.41,122.39,14.92]
[1766738823063,2.92786987,122.41,122.39,15.6]
[1766738823244,2.21786987,122.41,122.39,15.6]
[1766738823438,2.21786987,122.4,122.36,8.17240269]
[1766738823663,2.92786987,122.39,122.36,8.84798693]
[1766738825265,2.92786987,122.39,122.37,0.68]
[1766738827471,2.92786987,122.39,122.36,8.84798693]
[1766738827868,0.71,122.38,122.36,8.84798693]
[1766738828855,0.71,122.38,122.35,0.68]
[1766738828856,2.92786987,122.38,122.35,0.68]
[1766738829168,2.92786987,122.38,122.35,8.85020837]
[1766738829944,2.92786987,122.37,122.34,0.68]
[1766738830853,2.92786987,122.37,122.34,25.20884182]
[1766738837363,11.04918564,122.38,122.35,0.66]
[1766738837566,2.87786987,122.38,122.35,0.66]
[1766738838276,0.66,122.38,122.35,0.66]
[1766738839382,11.04918554,122.38,122.35,0.66]
[1766738841673,2.87786987,122.38,122.35,0.66]
[1766738849487,0.66,122.37,122.35,0.66]
[1766738849783,0.66,122.38,122.35,0.66]
[1766738849989,2.87786987,122.38,122.35,0.66]
[1766738850788,2.21786987,122.38,122.35,0.66]
[1766738850965,2.87786987,122.39,122.36,0.66]
[1766738852089,4.12527919,122.39,122.36,0.66]
[1766738853303,29.48295215,122.4,122.37,0.66]
[1766738853791,8.82939802,122.41,122.38,0.66]
[1766738854477,130.47398385,122.42,122.38,0.66]
[1766738855188,19.04527919,122.42,122.39,0.66]
[1766738855695,4.12527919,122.42,122.39,0.66]
[1766738856487,3.46527919,122.42,122.39,0.66]
[1766738857276,4.12527919,122.42,122.39,0.66]
[1766738860994,0.66,122.42,122.39,8.17051742]
[1766738861289,19.14527919,122.44,122.41,0.66]
[1766738861994,0.66,122.43,122.41,0.66]
[1766738863678,19.14527919,122.44,122.41,0.66]
[1766738865201,0.66,122.42,122.39,0.7]
[1766738866193,0.66,122.42,122.39,23.18747845]
[1766738866396,0.66,122.42,122.4,0.7]
[1766738866586,23.18747845,122.44,122.4,0.7]
[1766738866895,3.46527919,122.42,122.4,0.7]
[1766738867093,0.66,122.43,122.4,0.7]
[1766738867294,4.12527919,122.43,122.4,0.7]
[1766738867792,27.37275764,122.44,122.4,0.7]
[1766738868103,27.37275764,122.44,122.41,0.67]
[1766738868402,0.72,122.43,122.41,0.67]
[1766738868702,23.18747845,122.44,122.41,0.67]
[1766738868877,0.1,122.44,122.42,0.67]
[1766738879401,0.1,122.44,122.43,0.67]
[1766738882080,0.1,122.44,122.42,0.67]
[1766738882813,0.82,122.44,122.41,8.83898201]
[1766738884813,4.28527919,122.44,122.41,0.67]
[1766738885808,0.72,122.43,122.41,0.67]
[1766738886407,4.28527919,122.44,122.41,0.67]
[1766738887010,0.82,122.44,122.41,0.67]
[1766738887305,3.46527919,122.42,122.38,0.67]
[1766738887511,0.72,122.41,122.38,0.67]
[1766738888212,0.72,122.41,122.38,8.84123904]
[1766738890708,4.18527919,122.41,122.38,0.67]
[1766738891211,0.72,122.41,122.38,0.67]
[1766738897212,0.72,122.41,122.38,4.13527919]
[1766738897412,8.16874987,122.42,122.39,4.13527919]
[1766738897606,30.85653909,122.44,122.39,4.13527919]
[1766738897607,8.8681528,122.43,122.4,0.67]
[1766738897915,0.7,122.42,122.4,0.67]
[1766738905422,0.7,122.42,122.39,0.67]
[1766738908318,0.7,122.42,122.39,4.13527919]
[1766738908520,0.7,122.42,122.4,0.67]
[1766738908721,8.8681528,122.43,122.4,0.67]
[1766738909927,0.7,122.42,122.4,0.67]
[1766738913727,0.7,122.45,122.42,0.67]
[1766738913919,0.7,122.45,122.43,2.88601779]
[1766738914432,0.1,122.46,122.44,0.67]
[1766738915222,0.8,122.46,122.44,0.67]
[1766738916031,0.8,122.46,122.43,2.88601779]